[Event "2026 Biel Blitz Open"]
[Site "Biel, CH"]
[Date "2026.07.19"]
[Round "13"]
[White "Rohrer, Christophe"]
[Black "Python, Noe"]
[Result "1-0"]
[Board "21"]
[TimeControl "180+2"]
[WhiteFideId "1326546"]
[BlackFideId "1337637"]
[WhiteElo "2216"]
[BlackElo "2010"]
[WhiteTitle "FM"]
[WhiteClock "0:00:18"]
[BlackClock "0:00:05"]
[Variant "Standard"]
[EndDate "2026.07.19"]
[EndTime "16:21:22"]

1. e4 {[%clk 0:03:03]}  d6 {[%clk 0:03:03]} 2. d4 {[%clk 0:03:04]}  Nf6 {[%clk 0:03:05]} 3. Nc3 {[%clk 0:03:05]}  e5 {[%clk 0:03:06]}
4. Nge2 {[%clk 0:03:05]}  c6 {[%clk 0:03:04]} 5. g3 {[%clk 0:03:04]}  b5 {[%clk 0:03:01]} 6. a3 {[%clk 0:03:05]}  Be7 {[%clk 0:03:01]}
7. Bg2 {[%clk 0:03:06]}  Nbd7 {[%clk 0:02:58]} 8. O-O {[%clk 0:03:02]}  Bb7 {[%clk 0:03:00]} 9. h3 {[%clk 0:02:58]}  a5 {[%clk 0:03:01]}
10. Be3 {[%clk 0:02:41]}  b4 {[%clk 0:02:59]} 11. Nb1 {[%clk 0:02:15]}  exd4 {[%clk 0:02:54]} 12. Nxd4 {[%clk 0:02:10]}  c5 {[%clk 0:02:17]}
13. Nf5 {[%clk 0:02:10]}  O-O {[%clk 0:01:58]} 14. Nd2 {[%clk 0:02:04]}  d5 {[%clk 0:01:42]} 15. exd5 {[%clk 0:01:41]}  Nxd5 {[%clk 0:01:33]}
16. Nc4 {[%clk 0:01:42]}  Nxe3 {[%clk 0:01:30]} 17. Nfxe3 {[%clk 0:01:39]}  Bxg2 {[%clk 0:01:31]} 18. Kxg2 {[%clk 0:01:40]}  Bf6 {[%clk 0:01:28]}
19. axb4 {[%clk 0:01:35]}  axb4 {[%clk 0:01:29]} 20. Qd5 {[%clk 0:01:29]}  Ne5 {[%clk 0:00:43]} 21. Rxa8 {[%clk 0:01:06]}  Qxd5+ {[%clk 0:00:25]}
22. Nxd5 {[%clk 0:01:07]}  Rxa8 {[%clk 0:00:24]} 23. Nxf6+ {[%clk 0:00:35]}  gxf6 {[%clk 0:00:25]} 24. Ne3 {[%clk 0:00:21]}  Ra2 {[%clk 0:00:23]}
25. b3 {[%clk 0:00:21]}  Nc6 {[%clk 0:00:24]} 26. Rc1 {[%clk 0:00:08]}  Nd4 {[%clk 0:00:25]} 27. Kf1 {[%clk 0:00:07]}  Kg7 {[%clk 0:00:21]}
28. Ke1 {[%clk 0:00:09]}  f5 {[%clk 0:00:22]} 29. Kd1 {[%clk 0:00:10]}  Kf6 {[%clk 0:00:19]} 30. Nd5+ {[%clk 0:00:10]}  Ke5 {[%clk 0:00:15]}
31. Nf4 {[%clk 0:00:11]}  Ke4 {[%clk 0:00:13]} 32. Nd3 {[%clk 0:00:13]}  Kd5 {[%clk 0:00:06]} 33. Nf4+ {[%clk 0:00:07]}  Ke4 {[%clk 0:00:07]}
34. Nd3 {[%clk 0:00:08]}  Kf3 {[%clk 0:00:05]} 35. Nxc5 {[%clk 0:00:09]}  Kxf2 {[%clk 0:00:05]} 36. Nd3+ {[%clk 0:00:10]}  Kxg3 {[%clk 0:00:06]}
37. Nxb4 {[%clk 0:00:12]}  f4 {[%clk 0:00:06]} 38. Nxa2 {[%clk 0:00:13]}  f3 {[%clk 0:00:07]} 39. Kd2 {[%clk 0:00:14]}  f2 {[%clk 0:00:07]}
40. Nc3 {[%clk 0:00:13]}  Kg2 {[%clk 0:00:06]} 41. Ne4 {[%clk 0:00:10]}  f1=Q {[%clk 0:00:05]} 42. Rxf1 {[%clk 0:00:12]}  Kxf1 {[%clk 0:00:06]}
43. Ng5 {[%clk 0:00:12]}  f5 {[%clk 0:00:05]} 44. Nxh7 {[%clk 0:00:13]}  f4 {[%clk 0:00:06]} 45. Ng5 {[%clk 0:00:14]}  f3 {[%clk 0:00:07]}
46. Nxf3 {[%clk 0:00:10]}  Nxf3+ {[%clk 0:00:07]} 47. Ke3 {[%clk 0:00:08]}  Ne5 {[%clk 0:00:07]} 48. h4 {[%clk 0:00:12]}  Kg2 {[%clk 0:00:08]}
49. h5 {[%clk 0:00:13]}  Kg3 {[%clk 0:00:08]} 50. Ke4 {[%clk 0:00:13]}  Nd7 {[%clk 0:00:06]} 51. Kd4 {[%clk 0:00:10]}  Kg4 {[%clk 0:00:04]}
52. h6 {[%clk 0:00:11]}  Nf6 {[%clk 0:00:05]} 53. b4 {[%clk 0:00:12]}  Kg5 {[%clk 0:00:07]} 54. b5 {[%clk 0:00:13]}  Kxh6 {[%clk 0:00:07]}
55. b6 {[%clk 0:00:14]}  Kg6 {[%clk 0:00:08]} 56. b7 {[%clk 0:00:15]}  Nd7 {[%clk 0:00:09]} 57. Kd5 {[%clk 0:00:16]}  Kf7 {[%clk 0:00:10]}
58. Kd6 {[%clk 0:00:17]}  Nb8 {[%clk 0:00:06]} 59. c4 {[%clk 0:00:16]}  Ke8 {[%clk 0:00:07]} 60. c5 {[%clk 0:00:15]}  Kd8 {[%clk 0:00:08]}
61. c6 {[%clk 0:00:17]}  Na6 {[%clk 0:00:05]} 62. c7+ {[%clk 0:00:18]} 1-0

[Event "2026 Biel Blitz Open"]
[Site "Biel, CH"]
[Date "2026.07.19"]
[Round "13"]
[White "Schweizer, Simon"]
[Black "Dietiker, Manuel"]
[Result "1-0"]
[Board "22"]
[TimeControl "180+2"]
[WhiteFideId "1325361"]
[BlackFideId "1317377"]
[WhiteElo "2182"]
[BlackElo "2002"]
[WhiteClock "0:01:30"]
[BlackClock "0:00:15"]
[Variant "Standard"]
[EndDate "2026.07.19"]
[EndTime "16:27:20"]

1. e4 {[%clk 0:03:03]}  c5 {[%clk 0:03:03]} 2. Nf3 {[%clk 0:03:04]}  e6 {[%clk 0:03:04]} 3. d4 {[%clk 0:03:06]}  cxd4 {[%clk 0:03:05]}
4. Nxd4 {[%clk 0:03:06]}  Nc6 {[%clk 0:03:05]} 5. Nc3 {[%clk 0:03:07]}  Qc7 {[%clk 0:03:06]} 6. g3 {[%clk 0:03:00]}  Nf6 {[%clk 0:03:06]}
7. Bg2 {[%clk 0:03:01]}  a6 {[%clk 0:03:07]} 8. O-O {[%clk 0:03:02]}  d6 {[%clk 0:03:07]} 9. Re1 {[%clk 0:03:02]}  Be7 {[%clk 0:03:04]}
10. Nxc6 {[%clk 0:03:03]}  bxc6 {[%clk 0:03:04]} 11. e5 {[%clk 0:03:04]}  dxe5 {[%clk 0:03:02]} 12. Rxe5 {[%clk 0:03:04]}  O-O {[%clk 0:03:02]}
13. Re1 {[%clk 0:02:55]}  Rd8 {[%clk 0:02:56]} 14. Qf3 {[%clk 0:02:54]}  Nd5 {[%clk 0:02:54]} 15. Ne4 {[%clk 0:02:54]}  Rb8 {[%clk 0:02:50]}
16. a3 {[%clk 0:02:55]}  c5 {[%clk 0:02:40]} 17. c4 {[%clk 0:02:55]}  Nb6 {[%clk 0:02:32]} 18. b3 {[%clk 0:02:38]}  Bb7 {[%clk 0:02:27]}
19. Bf4 {[%clk 0:02:35]}  e5 {[%clk 0:02:24]} 20. Be3 {[%clk 0:02:32]}  Bxe4 {[%clk 0:02:11]} 21. Qxe4 {[%clk 0:02:33]}  Nd7 {[%clk 0:02:12]}
22. Qc2 {[%clk 0:02:31]}  Nf8 {[%clk 0:02:04]} 23. Bd5 {[%clk 0:02:31]}  Bf6 {[%clk 0:01:28]} 24. Rab1 {[%clk 0:02:31]}  Nd7 {[%clk 0:01:21]}
25. h4 {[%clk 0:02:27]}  Nb6 {[%clk 0:01:17]} 26. Be4 {[%clk 0:02:27]}  g6 {[%clk 0:01:14]} 27. h5 {[%clk 0:02:25]}  Bg7 {[%clk 0:01:11]}
28. hxg6 {[%clk 0:02:23]}  hxg6 {[%clk 0:01:12]} 29. Bg2 {[%clk 0:02:05]}  Rd6 {[%clk 0:01:11]} 30. Rec1 {[%clk 0:02:04]}  Rc8 {[%clk 0:00:59]}
31. b4 {[%clk 0:01:44]}  Nd7 {[%clk 0:00:34]} 32. b5 {[%clk 0:01:44]}  Nb6 {[%clk 0:00:33]} 33. a4 {[%clk 0:01:41]}  axb5 {[%clk 0:00:19]}
34. cxb5 {[%clk 0:01:40]}  c4 {[%clk 0:00:20]} 35. a5 {[%clk 0:01:35]}  Nd5 {[%clk 0:00:21]} 36. Bxd5 {[%clk 0:01:32]}  Rxd5 {[%clk 0:00:22]}
37. a6 {[%clk 0:01:31]}  Bf8 {[%clk 0:00:14]} 38. b6 {[%clk 0:01:32]}  Qb8 {[%clk 0:00:15]} 39. b7 {[%clk 0:01:30]} 1-0

[Event "2026 Biel Blitz Open"]
[Site "Biel, CH"]
[Date "2026.07.19"]
[Round "13"]
[White "Floure, Alexan"]
[Black "Gireada, Daniel"]
[Result "1-0"]
[Board "23"]
[TimeControl "180+2"]
[WhiteFideId "1346610"]
[BlackFideId "1206451"]
[WhiteElo "1960"]
[BlackElo "2148"]
[WhiteClock "0:00:06"]
[BlackClock "0:00:05"]
[Variant "Standard"]
[EndDate "2026.07.19"]
[EndTime "16:27:59"]

1. d4 {[%clk 0:03:02]}  Nf6 {[%clk 0:03:02]} 2. c4 {[%clk 0:03:03]}  g6 {[%clk 0:03:00]} 3. Nc3 {[%clk 0:03:03]}  d5 {[%clk 0:03:00]}
4. cxd5 {[%clk 0:03:01]}  Nxd5 {[%clk 0:03:00]} 5. Na4 {[%clk 0:03:02]}  Bg7 {[%clk 0:02:55]} 6. e4 {[%clk 0:03:01]}  Nb6 {[%clk 0:02:54]}
7. Be3 {[%clk 0:03:02]}  O-O {[%clk 0:02:52]} 8. Nf3 {[%clk 0:03:00]}  Nxa4 {[%clk 0:02:48]} 9. Qxa4 {[%clk 0:03:00]}  c5 {[%clk 0:02:25]}
10. Rd1 {[%clk 0:03:00]}  Bd7 {[%clk 0:02:12]} 11. Qb3 {[%clk 0:02:53]}  cxd4 {[%clk 0:02:07]} 12. Bxd4 {[%clk 0:02:45]}  Qc7 {[%clk 0:01:56]}
13. Bxg7 {[%clk 0:02:40]}  Kxg7 {[%clk 0:01:57]} 14. Be2 {[%clk 0:02:22]}  Nc6 {[%clk 0:01:53]} 15. O-O {[%clk 0:02:20]}  Rad8 {[%clk 0:01:48]}
16. Rfe1 {[%clk 0:02:05]}  Kg8 {[%clk 0:01:49]} 17. h3 {[%clk 0:01:58]}  Be6 {[%clk 0:01:46]} 18. Qc3 {[%clk 0:01:56]}  Qb6 {[%clk 0:01:40]}
19. Nh2 {[%clk 0:01:50]}  Qa5 {[%clk 0:01:20]} 20. Qxa5 {[%clk 0:01:22]}  Nxa5 {[%clk 0:01:21]} 21. b3 {[%clk 0:01:23]}  Nc6 {[%clk 0:01:16]}
22. Nf3 {[%clk 0:01:21]}  f6 {[%clk 0:01:05]} 23. Kf1 {[%clk 0:01:06]}  Kg7 {[%clk 0:01:06]} 24. h4 {[%clk 0:01:00]}  Nb4 {[%clk 0:01:07]}
25. Nd4 {[%clk 0:00:48]}  Bf7 {[%clk 0:01:03]} 26. Nb5 {[%clk 0:00:28]}  Nxa2 {[%clk 0:00:50]} 27. Ra1 {[%clk 0:00:27]}  Bxb3 {[%clk 0:00:46]}
28. Reb1 {[%clk 0:00:21]}  Bf7 {[%clk 0:00:46]} 29. Rb2 {[%clk 0:00:18]}  a6 {[%clk 0:00:45]} 30. Nc7 {[%clk 0:00:16]}  Nc3 {[%clk 0:00:46]}
31. Bf3 {[%clk 0:00:14]}  Rc8 {[%clk 0:00:32]} 32. Rxb7 {[%clk 0:00:13]}  Bc4+ {[%clk 0:00:28]} 33. Kg1 {[%clk 0:00:10]}  Ne2+ {[%clk 0:00:24]}
34. Bxe2 {[%clk 0:00:09]}  Bxe2 {[%clk 0:00:23]} 35. Ne6+ {[%clk 0:00:11]}  Kf7 {[%clk 0:00:25]} 36. Nxf8 {[%clk 0:00:11]}  Rxf8 {[%clk 0:00:27]}
37. Ra2 {[%clk 0:00:10]}  Bb5 {[%clk 0:00:27]} 38. Rc2 {[%clk 0:00:10]}  Re8 {[%clk 0:00:25]} 39. Rcc7 {[%clk 0:00:11]}  Ke6 {[%clk 0:00:23]}
40. f3 {[%clk 0:00:10]}  h6 {[%clk 0:00:24]} 41. Kf2 {[%clk 0:00:11]}  f5 {[%clk 0:00:22]} 42. Ke3 {[%clk 0:00:11]}  fxe4 {[%clk 0:00:21]}
43. fxe4 {[%clk 0:00:10]}  Kf6 {[%clk 0:00:21]} 44. Rb6+ {[%clk 0:00:10]}  e6 {[%clk 0:00:20]} 45. Rh7 {[%clk 0:00:10]}  h5 {[%clk 0:00:19]}
46. Rbb7 {[%clk 0:00:10]}  Rd8 {[%clk 0:00:11]} 47. Rhf7+ {[%clk 0:00:10]}  Ke5 {[%clk 0:00:12]} 48. Rg7 {[%clk 0:00:07]}  Rd3+ {[%clk 0:00:11]}
49. Kf2 {[%clk 0:00:09]}  Rd2+ {[%clk 0:00:12]} 50. Kg3 {[%clk 0:00:08]}  Kxe4 {[%clk 0:00:12]} 51. Rxg6 {[%clk 0:00:08]}  e5 {[%clk 0:00:12]}
52. Re7 {[%clk 0:00:08]}  Bf1 {[%clk 0:00:11]} 53. Kh2 {[%clk 0:00:08]}  a5 {[%clk 0:00:08]} 54. Rg5 {[%clk 0:00:09]}  Rd5 {[%clk 0:00:09]}
55. Ra7 {[%clk 0:00:08]}  Kf4 {[%clk 0:00:09]} 56. Rxh5 {[%clk 0:00:09]}  Be2 {[%clk 0:00:08]} 57. Rg5 {[%clk 0:00:09]}  Bd3 {[%clk 0:00:06]}
58. Rf7+ {[%clk 0:00:09]}  Ke4 {[%clk 0:00:05]} 59. Ra7 {[%clk 0:00:10]}  Kf4 {[%clk 0:00:06]} 60. Rgg7 {[%clk 0:00:09]}  Be4 {[%clk 0:00:06]}
61. h5 {[%clk 0:00:09]}  Rd6 {[%clk 0:00:07]} 62. Raf7+ {[%clk 0:00:08]}  Ke3 {[%clk 0:00:08]} 63. Re7 {[%clk 0:00:07]}  Kd4 {[%clk 0:00:06]}
64. Rg5 {[%clk 0:00:05]}  Rd5 {[%clk 0:00:03]} 65. h6 {[%clk 0:00:05]}  a4 {[%clk 0:00:05]} 66. Ra7 {[%clk 0:00:06]}  a3 {[%clk 0:00:05]} 1-0

[Event "2026 Biel Blitz Open"]
[Site "Biel, CH"]
[Date "2026.07.19"]
[Round "13"]
[White "Langner, Robin"]
[Black "Haugner, Jan"]
[Result "1-0"]
[Board "24"]
[TimeControl "180+2"]
[WhiteFideId "34606190"]
[BlackFideId "24655244"]
[WhiteElo "2059"]
[BlackElo "1976"]
[WhiteClock "0:00:12"]
[BlackClock "0:00:06"]
[Variant "Standard"]
[EndDate "2026.07.19"]
[EndTime "16:21:06"]

1. d4 {[%clk 0:03:02]}  d5 {[%clk 0:03:04]} 2. c4 {[%clk 0:03:03]}  e6 {[%clk 0:03:05]} 3. g3 {[%clk 0:03:04]}  Nf6 {[%clk 0:03:06]}
4. Bg2 {[%clk 0:03:04]}  Bd6 {[%clk 0:03:06]} 5. Nf3 {[%clk 0:03:04]}  O-O {[%clk 0:03:05]} 6. O-O {[%clk 0:03:03]}  Nc6 {[%clk 0:03:06]}
7. b3 {[%clk 0:03:01]}  dxc4 {[%clk 0:03:07]} 8. bxc4 {[%clk 0:03:01]}  e5 {[%clk 0:03:08]} 9. c5 {[%clk 0:02:51]}  Be7 {[%clk 0:03:09]}
10. dxe5 {[%clk 0:02:51]}  Ne4 {[%clk 0:03:10]} 11. Be3 {[%clk 0:02:35]}  Qxd1 {[%clk 0:03:10]} 12. Rxd1 {[%clk 0:02:36]}  Nxc5 {[%clk 0:02:21]}
13. Nc3 {[%clk 0:02:32]}  Be6 {[%clk 0:02:10]} 14. Nd5 {[%clk 0:02:32]}  Bxd5 {[%clk 0:01:58]} 15. Rxd5 {[%clk 0:02:32]}  Ne6 {[%clk 0:01:59]}
16. Rb1 {[%clk 0:02:12]}  Rad8 {[%clk 0:01:42]} 17. Rxd8 {[%clk 0:02:10]}  Nexd8 {[%clk 0:01:36]} 18. h4 {[%clk 0:01:55]}  Re8 {[%clk 0:01:37]}
19. Nd4 {[%clk 0:01:40]}  Nxd4 {[%clk 0:01:33]} 20. Bxd4 {[%clk 0:01:41]}  b6 {[%clk 0:01:30]} 21. Rc1 {[%clk 0:01:37]}  Ne6 {[%clk 0:01:29]}
22. Bb2 {[%clk 0:01:32]}  Bc5 {[%clk 0:01:24]} 23. e3 {[%clk 0:01:30]}  Rd8 {[%clk 0:01:24]} 24. Bc3 {[%clk 0:01:24]}  a5 {[%clk 0:01:23]}
25. Bh3 {[%clk 0:01:13]}  Kf8 {[%clk 0:01:22]} 26. Bf5 {[%clk 0:01:13]}  g6 {[%clk 0:01:20]} 27. Be4 {[%clk 0:01:09]}  Ke7 {[%clk 0:01:20]}
28. Kg2 {[%clk 0:01:10]}  Ba3 {[%clk 0:01:14]} 29. Rc2 {[%clk 0:01:05]}  Nc5 {[%clk 0:01:14]} 30. Bc6 {[%clk 0:00:55]}  Rd3 {[%clk 0:00:54]}
31. Kf3 {[%clk 0:00:48]}  Bb4 {[%clk 0:00:42]} 32. Bd4 {[%clk 0:00:49]}  Rd2 {[%clk 0:00:34]} 33. Rxd2 {[%clk 0:00:34]}  Bxd2 {[%clk 0:00:36]}
34. Bxc5+ {[%clk 0:00:21]}  bxc5 {[%clk 0:00:36]} 35. Ke4 {[%clk 0:00:22]}  Be1 {[%clk 0:00:34]} 36. Kf3 {[%clk 0:00:23]}  c4 {[%clk 0:00:23]}
37. Ke2 {[%clk 0:00:15]}  Bc3 {[%clk 0:00:19]} 38. f4 {[%clk 0:00:15]}  Bb4 {[%clk 0:00:17]} 39. Bd5 {[%clk 0:00:16]}  c3 {[%clk 0:00:15]}
40. Bb3 {[%clk 0:00:17]}  f6 {[%clk 0:00:14]} 41. exf6+ {[%clk 0:00:17]}  Kxf6 {[%clk 0:00:15]} 42. e4 {[%clk 0:00:18]}  c5 {[%clk 0:00:12]}
43. Kf3 {[%clk 0:00:17]}  c4 {[%clk 0:00:11]} 44. Bc2 {[%clk 0:00:18]}  Ba3 {[%clk 0:00:11]} 45. e5+ {[%clk 0:00:14]}  Ke7 {[%clk 0:00:10]}
46. h5 {[%clk 0:00:12]}  gxh5 {[%clk 0:00:07]} 47. Bxh7 {[%clk 0:00:13]}  Bc1 {[%clk 0:00:06]} 48. Bg6 {[%clk 0:00:12]}  Bd2 {[%clk 0:00:08]}
49. Bc2 {[%clk 0:00:13]}  Be1 {[%clk 0:00:08]} 50. f5 {[%clk 0:00:12]}  Bd2 {[%clk 0:00:04]} 51. Ke4 {[%clk 0:00:09]}  Be1 {[%clk 0:00:05]}
52. Kf3 {[%clk 0:00:10]}  Bd2 {[%clk 0:00:07]} 53. Ba4 {[%clk 0:00:11]}  Be1 {[%clk 0:00:06]} 54. g4 {[%clk 0:00:07]}  hxg4+ {[%clk 0:00:06]}
55. Kxg4 {[%clk 0:00:08]}  c2 {[%clk 0:00:05]} 56. Bxc2 {[%clk 0:00:09]}  Bc3 {[%clk 0:00:06]} 57. Kf4 {[%clk 0:00:10]}  Bb2 {[%clk 0:00:05]}
58. Ke4 {[%clk 0:00:11]}  Ba1 {[%clk 0:00:05]} 59. Ba4 {[%clk 0:00:11]}  Bb2 {[%clk 0:00:06]} 60. Bb5 {[%clk 0:00:13]}  c3 {[%clk 0:00:07]}
61. Ba4 {[%clk 0:00:13]}  Ba3 {[%clk 0:00:06]} 62. Bc2 {[%clk 0:00:13]}  Bc5 {[%clk 0:00:05]} 63. Kd5 {[%clk 0:00:14]}  Ba7 {[%clk 0:00:06]}
64. Bb3 {[%clk 0:00:12]}  Bb8 {[%clk 0:00:07]} 65. f6+ {[%clk 0:00:13]}  Kf8 {[%clk 0:00:07]} 66. e6 {[%clk 0:00:12]}  Bg3 {[%clk 0:00:06]}
67. e7+ {[%clk 0:00:12]} 1-0

[Event "2026 Biel Blitz Open"]
[Site "Biel, CH"]
[Date "2026.07.19"]
[Round "13"]
[White "Tkhoruk, Roman"]
[Black "Kwiatkowski, Maciej"]
[Result "0-1"]
[Board "25"]
[TimeControl "180+2"]
[WhiteFideId "34161589"]
[BlackFideId "1360175"]
[WhiteElo "2055"]
[BlackElo "1967"]
[WhiteClock "0:00:08"]
[BlackClock "0:00:53"]
[Variant "Standard"]
[EndDate "2026.07.19"]
[EndTime "16:23:58"]

1. e4 {[%clk 0:03:03]}  c5 {[%clk 0:03:03]} 2. Nf3 {[%clk 0:03:03]}  e6 {[%clk 0:03:04]} 3. c3 {[%clk 0:03:03]}  d5 {[%clk 0:02:58]}
4. e5 {[%clk 0:03:04]}  Nc6 {[%clk 0:02:57]} 5. d4 {[%clk 0:03:05]}  Nge7 {[%clk 0:02:49]} 6. Bd3 {[%clk 0:03:00]}  Qb6 {[%clk 0:02:43]}
7. O-O {[%clk 0:02:47]}  Bd7 {[%clk 0:02:44]} 8. dxc5 {[%clk 0:02:35]}  Qxc5 {[%clk 0:02:44]} 9. Be3 {[%clk 0:02:36]}  Qa5 {[%clk 0:02:43]}
10. b4 {[%clk 0:02:29]}  Qc7 {[%clk 0:02:42]} 11. Bd4 {[%clk 0:02:15]}  Ng6 {[%clk 0:02:32]} 12. Re1 {[%clk 0:02:00]}  Nxd4 {[%clk 0:02:30]}
13. Nxd4 {[%clk 0:01:55]}  Nxe5 {[%clk 0:02:27]} 14. Bb5 {[%clk 0:00:41]}  Nc6 {[%clk 0:02:20]} 15. Bxc6 {[%clk 0:00:33]}  bxc6 {[%clk 0:02:18]}
16. Nd2 {[%clk 0:00:20]}  Be7 {[%clk 0:02:15]} 17. N2f3 {[%clk 0:00:21]}  O-O {[%clk 0:02:12]} 18. Ne5 {[%clk 0:00:20]}  Bf6 {[%clk 0:02:08]}
19. f4 {[%clk 0:00:21]}  Rfd8 {[%clk 0:02:02]} 20. Qg4 {[%clk 0:00:18]}  c5 {[%clk 0:01:57]} 21. bxc5 {[%clk 0:00:16]}  Qxc5 {[%clk 0:01:57]}
22. Rac1 {[%clk 0:00:13]}  Rac8 {[%clk 0:01:47]} 23. Rf1 {[%clk 0:00:09]}  Qa5 {[%clk 0:01:40]} 24. Rf3 {[%clk 0:00:08]}  Qxa2 {[%clk 0:01:27]}
25. Rh3 {[%clk 0:00:08]}  Qd2 {[%clk 0:01:18]} 26. Rf1 {[%clk 0:00:05]}  Rxc3 {[%clk 0:01:15]} 27. Qh5 {[%clk 0:00:03]}  Qxd4+ {[%clk 0:01:11]}
28. Kh1 {[%clk 0:00:04]}  Rxh3 {[%clk 0:01:10]} 29. Qxf7+ {[%clk 0:00:03]}  Kh8 {[%clk 0:01:10]} 30. gxh3 {[%clk 0:00:03]}  Qe4+ {[%clk 0:01:06]}
31. Kg1 {[%clk 0:00:04]}  Bxe5 {[%clk 0:00:59]} 32. fxe5 {[%clk 0:00:05]}  Qg6+ {[%clk 0:00:59]} 33. Qxg6 {[%clk 0:00:04]}  hxg6 {[%clk 0:01:00]}
34. Ra1 {[%clk 0:00:05]}  Ra8 {[%clk 0:00:55]} 35. Ra6 {[%clk 0:00:05]}  Kg8 {[%clk 0:00:58]} 36. Kf2 {[%clk 0:00:06]}  Kf7 {[%clk 0:00:59]}
37. Ke3 {[%clk 0:00:08]}  Ke7 {[%clk 0:00:57]} 38. Kf4 {[%clk 0:00:09]}  Bb5 {[%clk 0:00:55]} 39. Ra5 {[%clk 0:00:10]}  a6 {[%clk 0:00:56]}
40. Kg5 {[%clk 0:00:12]}  Kf7 {[%clk 0:00:56]} 41. h4 {[%clk 0:00:13]}  Rh8 {[%clk 0:00:57]} 42. Ra3 {[%clk 0:00:14]}  Rh5+ {[%clk 0:00:57]}
43. Kg4 {[%clk 0:00:16]}  Rxe5 {[%clk 0:00:58]} 44. h3 {[%clk 0:00:15]}  d4 {[%clk 0:00:53]} 45. h5 {[%clk 0:00:14]}  gxh5+ {[%clk 0:00:54]}
46. Kf4 {[%clk 0:00:15]}  Rd5 {[%clk 0:00:54]} 47. h4 {[%clk 0:00:15]}  d3 {[%clk 0:00:55]} 48. Ke4 {[%clk 0:00:08]}  d2 {[%clk 0:00:47]}
49. Rf3+ {[%clk 0:00:08]}  Rf5 {[%clk 0:00:53]} 0-1

[Event "2026 Biel Blitz Open"]
[Site "Biel, CH"]
[Date "2026.07.19"]
[Round "13"]
[White "Aryan Goyal"]
[Black "Stefan, Iulia-Cristiana"]
[Result "0-1"]
[Board "26"]
[TimeControl "180+2"]
[WhiteFideId "366108825"]
[BlackFideId "1273876"]
[WhiteElo "1748"]
[BlackElo "2050"]
[BlackTitle "WFM"]
[WhiteClock "0:00:21"]
[BlackClock "0:00:22"]
[Variant "Standard"]
[EndDate "2026.07.19"]
[EndTime "16:18:52"]

1. e4 {[%clk 0:03:02]}  e5 {[%clk 0:03:04]} 2. Nf3 {[%clk 0:03:03]}  Nc6 {[%clk 0:03:05]} 3. Bb5 {[%clk 0:03:03]}  a6 {[%clk 0:03:07]}
4. Ba4 {[%clk 0:03:03]}  d6 {[%clk 0:03:07]} 5. O-O {[%clk 0:03:03]}  Bd7 {[%clk 0:03:08]} 6. c3 {[%clk 0:03:04]}  g6 {[%clk 0:03:09]}
7. d4 {[%clk 0:03:05]}  Bg7 {[%clk 0:03:10]} 8. h3 {[%clk 0:03:02]}  b5 {[%clk 0:03:12]} 9. Bc2 {[%clk 0:03:03]}  Nf6 {[%clk 0:03:13]}
10. Re1 {[%clk 0:03:03]}  O-O {[%clk 0:03:13]} 11. Nbd2 {[%clk 0:03:02]}  Re8 {[%clk 0:03:13]} 12. Nf1 {[%clk 0:03:03]}  Na5 {[%clk 0:03:14]}
13. Ng3 {[%clk 0:02:45]}  c5 {[%clk 0:03:15]} 14. dxc5 {[%clk 0:02:35]}  dxc5 {[%clk 0:03:16]} 15. Qd6 {[%clk 0:02:32]}  Nc4 {[%clk 0:02:29]}
16. Qd1 {[%clk 0:02:25]}  Qc7 {[%clk 0:02:25]} 17. b3 {[%clk 0:02:25]}  Nb6 {[%clk 0:02:25]} 18. Qe2 {[%clk 0:02:23]}  c4 {[%clk 0:02:14]}
19. Be3 {[%clk 0:02:17]}  cxb3 {[%clk 0:02:07]} 20. axb3 {[%clk 0:02:16]}  Rec8 {[%clk 0:01:39]} 21. Rec1 {[%clk 0:02:10]}  h6 {[%clk 0:01:36]}
22. Bd3 {[%clk 0:01:55]}  Be6 {[%clk 0:01:34]} 23. Nd2 {[%clk 0:01:25]}  Nfd7 {[%clk 0:01:33]} 24. c4 {[%clk 0:01:22]}  bxc4 {[%clk 0:01:32]}
25. Nxc4 {[%clk 0:01:21]}  Nxc4 {[%clk 0:01:26]} 26. Bxc4 {[%clk 0:01:21]}  Bxc4 {[%clk 0:01:05]} 27. Rxc4 {[%clk 0:01:22]}  Qb7 {[%clk 0:01:06]}
28. Rxc8+ {[%clk 0:01:18]}  Qxc8 {[%clk 0:00:59]} 29. Rc1 {[%clk 0:01:18]}  Qb7 {[%clk 0:00:59]} 30. Qc4 {[%clk 0:01:19]}  Rb8 {[%clk 0:00:52]}
31. Qc7 {[%clk 0:01:06]}  Bf8 {[%clk 0:00:45]} 32. Qxb7 {[%clk 0:00:44]}  Rxb7 {[%clk 0:00:46]} 33. Rc6 {[%clk 0:00:45]}  a5 {[%clk 0:00:36]}
34. Ra6 {[%clk 0:00:40]}  Rb5 {[%clk 0:00:22]} 35. Ne2 {[%clk 0:00:28]}  Nc5 {[%clk 0:00:21]} 36. Nc1 {[%clk 0:00:21]}  Nxa6 {[%clk 0:00:22]} 0-1